fUSD/lending_fUSD_20260108
["ID","MTS","AMOUNT","RATE_DAILY","PERIOD"]
[401057377,1767895844418,-500.0,0.00016514,2]
[401057379,1767895844428,-1500.0,0.00016514,2]
[401057381,1767895844437,-500.0,0.00016514,2]
[401057383,1767895844447,-500.0,0.00016514,2]
[401057385,1767895844456,-1500.0,0.00016514,2]
[401057387,1767895844469,-500.0,0.00016514,2]
[401057389,1767895844479,-500.0,0.00016514,2]
[401057391,1767895844488,-500.0,0.00016514,2]
[401057393,1767895844498,-500.0,0.00016514,2]
[401057418,1767895844729,-500.0,0.00016514,2]
[401057420,1767895844747,-500.0,0.00016514,2]
[401057422,1767895844756,-500.0,0.00016514,2]
[401057423,1767895844766,-500.0,0.00016514,2]
[401057425,1767895844775,-500.0,0.00016514,2]
[401057427,1767895844784,-151.0,0.00016514,2]
[401057429,1767895844794,-500.0,0.00016514,2]
[401057431,1767895844803,-500.0,0.00016514,2]
[401057433,1767895844812,-500.0,0.00016514,2]
[401057435,1767895844821,-500.0,0.00016514,2]
[401057437,1767895844831,-151.0,0.00016514,2]
[401057439,1767895844840,-500.0,0.00016514,2]
[401057440,1767895844850,-500.0,0.00016514,2]
[401057442,1767895844859,-500.0,0.00016514,2]
[401057444,1767895844868,-500.0,0.00016514,2]
[401057446,1767895844877,-151.0,0.00016514,2]
[401057448,1767895844887,-500.0,0.00016514,2]
[401057450,1767895844896,-500.0,0.00016514,2]
[401057452,1767895844905,-151.0,0.00016514,2]
[401057454,1767895844914,-500.0,0.00016514,2]
[401057455,1767895844924,-250.0,0.00016514,2]
[401057457,1767895844934,-500.0,0.00016514,2]
[401057459,1767895844943,-162.7023203,0.00016514,2]
[401057461,1767895844952,-500.0,0.00016514,2]
[401057463,1767895844962,-250.0,0.00016514,2]
[401057465,1767895844971,-500.0,0.00016514,2]
[401057467,1767895844981,-250.0,0.00016514,2]
[401057469,1767895844989,-500.0,0.00016514,2]
[401057471,1767895844999,-250.0,0.00016514,2]
[401057473,1767895845009,-500.0,0.00016514,2]
[401057475,1767895845018,-250.0,0.00016514,2]
[401057477,1767895845028,-695.39793187,0.00016514,2]
[401057478,1767895845037,-260.34840278,0.00016514,2]
[401057480,1767895845046,-250.0,0.00016514,2]
[401057482,1767895845056,-300.0,0.00016514,2]
[401057484,1767895845065,-250.0,0.00016514,2]
[401057486,1767895845074,-250.0,0.00016514,2]
[401057488,1767895845084,-250.0,0.00016514,2]
[401057490,1767895845094,-250.0,0.00016514,2]
[401057492,1767895845103,-250.0,0.00016514,2]
[401057494,1767895845113,-250.0,0.00016514,2]
[401057496,1767895845122,-553.64373807,0.00016514,2]
[401057498,1767895845131,-500.0,0.00016514,2]
[401057500,1767895845140,-500.0,0.00016514,2]
[401057502,1767895845149,-500.0,0.00016514,2]
[401057504,1767895845159,-322.6107,0.00016514,2]
[401057506,1767895845168,-500.0,0.00016514,2]
[401057508,1767895845177,-500.0,0.00016514,2]
[401057510,1767895845187,-2000.0,0.00016514,2]
[401057512,1767895845196,-500.0,0.00016514,2]
[401057514,1767895845206,-2000.0,0.00016514,2]
[401057516,1767895845215,-500.0,0.00016514,2]
[401057518,1767895845224,-2000.0,0.00016514,2]
[401057520,1767895845234,-500.0,0.00016514,2]
[401057522,1767895845244,-2000.0,0.00016514,2]
[401057523,1767895845254,-500.0,0.00016514,2]
[401057525,1767895845264,-2000.0,0.00016514,2]
[401057527,1767895845273,-500.0,0.00016514,2]
[401057529,1767895845283,-2000.0,0.00016514,2]
[401057531,1767895845295,-500.0,0.00016514,2]
[401057533,1767895845304,-2000.0,0.00016514,2]
[401057535,1767895845314,-500.0,0.00016514,2]
[401057537,1767895845323,-2000.0,0.00016514,2]
[401057539,1767895845334,-2000.0,0.00016514,2]
[401057541,1767895845343,-2000.0,0.00016514,2]
[401057543,1767895845352,-2000.0,0.00016514,2]
[401057545,1767895845363,-2000.0,0.00016514,2]
[401057547,1767895845373,-1000.0,0.00016515,2]
[401057549,1767895845383,-500.0,0.00016548,2]
[401057551,1767895845393,-1316.20759869,0.00016569,2]
[401057553,1767895845402,-195.08159117,0.00016602,2]
[401057554,1767895845412,-612.54961922,0.00016619,2]
[401057556,1767895845421,-956.65,0.00016628,2]
[401057558,1767895845431,-3868.4,0.00016643,2]
[401057560,1767895845441,-14136.36741063,0.00016694,2]
[401057562,1767895845452,-165.16,0.00016712,2]
[401057564,1767895845463,-931.94,0.00016719,2]
[401057566,1767895845472,-500.0,0.00016719,2]
[401057568,1767895845483,-500.0,0.00016719,2]
[401057570,1767895845492,-600.85,0.00016719,2]
[401057572,1767895845501,-162.0,0.0001672,2]
[401057574,1767895845511,-833.0,0.0001672,2]
[401057576,1767895845520,-162.0,0.0001672,2]
[401057578,1767895845531,-833.0,0.0001672,2]
[401057580,1767895845540,-162.0,0.0001672,2]
[401057582,1767895845550,-833.0,0.0001672,2]
[401057584,1767895845560,-833.0,0.0001672,2]
[401057586,1767895845569,-833.0,0.0001672,2]
[401057588,1767895845579,-162.0,0.0001672,2]
[401057590,1767895845589,-833.0,0.0001672,2]
[401057592,1767895845599,-833.0,0.0001672,2]
[401057594,1767895845608,-162.0,0.0001672,2]
[401057596,1767895845617,-833.0,0.0001672,2]
[401057598,1767895845627,-833.0,0.0001672,2]
[401057600,1767895845636,-162.0,0.0001672,2]
[401057603,1767895845646,-552.0,0.0001672,2]
[401057606,1767895845656,-7804.45255636,0.00016726,2]
[401057607,1767895845665,-3868.4,0.00016778,2]
[401057610,1767895845675,-1000.0,0.000168,2]
[401057613,1767895845685,-157.72323008,0.00016884,2]
[401057616,1767895845695,-3868.4,0.00016914,2]
[401057619,1767895845704,-469.50438451,0.0001695,2]
[401057622,1767895845714,-2500.0,0.00016954,2]
[401057625,1767895845723,-2500.0,0.00016954,2]
[401057627,1767895845733,-2500.0,0.00016954,2]
[401057630,1767895845743,-4000.0,0.00017,2]
[401057631,1767895845752,-350.40168713,0.00017037,2]
[401057634,1767895845762,-162.0,0.0001704,2]
[401057635,1767895845772,-833.0,0.0001704,2]
[401057637,1767895845781,-833.0,0.0001704,2]
[401057639,1767895845791,-162.0,0.0001704,2]
[401057641,1767895845800,-833.0,0.0001704,2]
[401057643,1767895845809,-833.0,0.0001704,2]
[401057645,1767895845819,-833.0,0.0001704,2]
[401057647,1767895845829,-162.0,0.0001704,2]
[401057649,1767895845838,-833.0,0.0001704,2]
[401057651,1767895845847,-3868.4,0.0001705,2]
[401057653,1767895845857,-293.26916709,0.00017062,2]
[401057655,1767895845866,-151.0,0.00017062,2]
[401057657,1767895845876,-151.0,0.00017062,2]
[401057659,1767895845885,-311.1,0.00017062,2]
[401057661,1767895845895,-574.12855637,0.00017062,2]
[401057663,1767895845904,-1733.0,0.0001709,2]
[401057665,1767895845914,-500.0,0.00017099,2]
[401057667,1767895845923,-500.0,0.00017099,2]
[401057669,1767895845932,-1000.0,0.00017112,2]
[401057671,1767895845941,-1733.0,0.00017162,2]
[401057673,1767895845951,-3868.4,0.00017186,2]
[401057675,1767895845960,-612.5496192,0.0001726,2]
[401057677,1767895845969,-1252.0,0.00017262,2]
[401057679,1767895845978,-1733.0,0.00017282,2]
[401057681,1767895845989,-14136.36741063,0.00017297,2]
[401057683,1767895845998,-76992.0,0.000173,2]
[401057685,1767895846007,-7804.45255636,0.00017313,2]
[401057687,1767895846017,-3868.4,0.00017321,2]
[401057689,1767895846026,-833.0,0.0001736,2]
[401057691,1767895846036,-162.0,0.0001736,2]
[401057693,1767895846045,-162.0,0.0001736,2]
[401057695,1767895846054,-833.0,0.0001736,2]
[401057697,1767895846064,-162.0,0.0001736,2]
[401057699,1767895846074,-162.0,0.0001736,2]
[401057700,1767895846083,-833.0,0.0001736,2]
[401057703,1767895846093,-162.0,0.0001736,2]
[401057704,1767895846103,-833.0,0.0001736,2]
[401057706,1767895846112,-833.0,0.0001736,2]
[401057709,1767895846122,-833.0,0.0001736,2]
[401057710,1767895846131,-162.0,0.0001736,2]
[401057713,1767895846141,-162.0,0.0001736,2]
[401057714,1767895846150,-1733.0,0.00017374,2]
[401057717,1767895846159,-1000.0,0.000174,2]
[401057718,1767895846169,-157.72323008,0.00017412,2]
[401057720,1767895846178,-1733.0,0.00017432,2]
[401057722,1767895846188,-1266.0,0.00017438,2]
[401057724,1767895846197,-914.0,0.00017438,2]
[401057726,1767895846206,-1204.815,0.00017438,2]
[401057728,1767895846215,-4819.0,0.00017438,2]
[401057730,1767895846225,-2436.0,0.00017438,2]
[401057732,1767895846234,-565.0,0.00017438,2]
[401057734,1767895846244,-3868.4,0.00017457,2]
[401057736,1767895846253,-3036.0,0.000175,2]
[401057738,1767895846263,-3000.0,0.000175,2]
[401057740,1767895846272,-3000.0,0.00017502,2]
[401057742,1767895846282,-3000.0,0.00017502,2]
[401057744,1767895846296,-3000.0,0.00017502,2]
[401057746,1767895846305,-1042.30773041,0.00017534,2]
[401057748,1767895846316,-356.0,0.00017562,2]
[401057750,1767895846326,-7567.0,0.00017562,2]
[401057753,1767895846336,-3868.4,0.00017593,2]
[401057755,1767895846346,-166.77833559,0.0001761,2]
[401057757,1767895846357,-151.0,0.0001761,2]
[401057758,1767895846367,-322.6107,0.0001761,2]
[401057760,1767895846377,-595.37131296,0.0001761,2]
[401057762,1767895846387,-500.0,0.00017639,2]
[401057764,1767895846396,-500.0,0.00017639,2]
[401057766,1767895846406,-14833.25309894,0.0001764,2]
[401057768,1767895846416,-168.52,0.00017656,2]
[401057770,1767895846426,-833.0,0.0001768,2]
[401057772,1767895846435,-833.0,0.0001768,2]
[401057774,1767895846444,-162.0,0.0001768,2]
[401057776,1767895846454,-833.0,0.0001768,2]
[401057778,1767895846463,-162.0,0.0001768,2]
[401057780,1767895846473,-162.0,0.0001768,2]
[401057782,1767895846483,-162.0,0.0001768,2]
[401057784,1767895846492,-833.0,0.0001768,2]
[401057786,1767895846502,-162.0,0.0001768,2]
[401057788,1767895846511,-833.0,0.0001768,2]
[401057790,1767895846522,-162.0,0.0001768,2]
[401057792,1767895846531,-162.0,0.0001768,2]
[401057794,1767895846542,-162.0,0.0001768,2]
[401057796,1767895846551,-833.0,0.0001768,2]
[401057798,1767895846561,-833.0,0.0001768,2]
[401057800,1767895846571,-163.0,0.0001768,2]
[401057802,1767895846582,-1803.699,0.00017683,2]
[401057804,1767895846592,-151.0,0.00017686,2]
[401057806,1767895846602,-25000.0,0.00017689,3]
[401057808,1767895846612,-1733.0,0.0001769,2]
[401057810,1767895846622,-25000.0,0.00017698,3]
[401057812,1767895846632,-4280.56502844,0.000177,2]
[401057813,1767895846642,-167.203,0.000177,2]
[401057815,1767895846652,-1000.0,0.000177,2]
[401057817,1767895846662,-25000.0,0.00017706,3]
[401057819,1767895846672,-1000.0,0.00017709,2]
[401057821,1767895846682,-931.94,0.00017714,2]
[401057822,1767895846692,-500.0,0.00017714,2]
[401057824,1767895846703,-500.0,0.00017714,2]
[401057826,1767895846712,-600.85,0.00017714,2]
[401057827,1767895846722,-25000.0,0.00017715,3]
[401057828,1767895846731,-500.0,0.00017723,2]
[401057829,1767895846741,-500.0,0.00017723,2]
[401057830,1767895846750,-25000.0,0.00017724,3]
[401057831,1767895846760,-3868.4,0.00017729,2]
[401057832,1767895846770,-25000.0,0.00017733,3]
[401057833,1767895846779,-25000.0,0.00017742,3]
[401057834,1767895846789,-1733.0,0.00017745,2]
[401057835,1767895846799,-25000.0,0.0001775,3]
[401057837,1767895846808,-25000.0,0.00017759,3]
[401057839,1767895846818,-25000.0,0.00017768,3]
[401057841,1767895846827,-25000.0,0.00017777,3]
[401057843,1767895846837,-25000.0,0.00017786,3]
[401057845,1767895846846,-758.96088212,0.0001782,2]
[401057848,1767895846856,-1516.20815108,0.0001783,2]
[401057850,1767895846866,-1047.53522858,0.0001783,2]
[401057851,1767895846875,-2000.0,0.00017855,2]
[401057853,1767895846885,-200.0,0.00017855,2]
[401057855,1767895846895,-200.0,0.00017856,2]
[401057857,1767895846905,-2000.0,0.00017856,2]
[401057859,1767895846914,-200.0,0.00017856,2]
[401057861,1767895846924,-200.0,0.00017856,2]
[401057863,1767895846934,-226.0,0.00017861,2]
[401057865,1767895846944,-3868.4,0.00017864,2]
[401057867,1767895846953,-642.94,0.00017883,2]
[401057869,1767895846963,-334.5472959,0.00017883,2]
[401057871,1767895846972,-150.48,0.00017891,2]
[401057873,1767895846981,-500.0,0.00017899,2]
[401057875,1767895846990,-931.94,0.00017899,2]
[401057877,1767895846999,-500.0,0.00017899,2]
[401057879,1767895847008,-500.0,0.00017899,2]
[401057881,1767895847018,-500.0,0.00017899,2]
[401057883,1767895847028,-600.85,0.00017899,2]
[401057892,1767895847037,-14136.36741063,0.000179,2]
[401057894,1767895847116,-2145.85954516,0.000179,2]
[401057896,1767895847125,-612.5496192,0.000179,2]
[401057898,1767895847134,-350.40168713,0.000179,2]
[401057900,1767895847143,-7804.45255636,0.000179,2]
[401057902,1767895847152,-423.76529882,0.000179,2]
[401057904,1767895847161,-211.30647502,0.000179,2]
[401057906,1767895847170,-482.72,0.0001792,2]
[401057908,1767895847180,-482.72,0.0001792,2]
[401057910,1767895847190,-482.72,0.0001792,2]
[401057912,1767895847199,-482.72,0.0001792,2]
[401057914,1767895847209,-482.72,0.0001792,2]
[401057916,1767895847219,-482.72,0.0001792,2]
[401057918,1767895847228,-482.72,0.0001792,2]
[401057920,1767895847238,-157.72323008,0.0001794,2]
[401057922,1767895847247,-1733.0,0.00017949,2]
[401057924,1767895847257,-500.0,0.00017965,2]
[401057925,1767895847267,-500.0,0.00017965,2]
[401057928,1767895847277,-500.0,0.0001797,2]
[401057930,1767895847288,-1000.0,0.0001797,2]
[401057932,1767895847299,-500.0,0.0001797,2]
[401057933,1767895847309,-1000.0,0.0001797,2]
[401057935,1767895847319,-500.0,0.0001797,2]
[401057937,1767895847331,-1000.0,0.0001797,2]
[401057939,1767895847341,-500.0,0.0001797,2]
[401057941,1767895847351,-1000.0,0.0001797,2]
[401057943,1767895847363,-500.0,0.0001797,2]
[401057945,1767895847374,-1000.0,0.0001797,2]
[401057948,1767895847385,-584.41347442,0.0001797,2]
[401057949,1767895847395,-1000.0,0.0001797,2]
[401057951,1767895847406,-1000.0,0.0001797,2]
[401057953,1767895847416,-1446.54474908,0.0001797,2]
[401057955,1767895847427,-8200.0,0.00017973,2]
[401057957,1767895847437,-500.0,0.00017973,2]
[401057959,1767895847448,-500.0,0.00017973,2]
[401057961,1767895847458,-500.17178809,0.00017973,2]
[401057963,1767895847468,-426.73386812,0.00017973,2]
[401057965,1767895847477,-160.89060159,0.00017973,2]
[401057967,1767895847487,-150.0,0.00017973,2]
[401057969,1767895847496,-500.0,0.00017973,2]
[401057971,1767895847505,-150.49880534,0.00017973,2]
[401057973,1767895847515,-500.0,0.00017973,2]
[401057975,1767895847526,-159.904,0.00017973,2]
[401057977,1767895847537,-500.0,0.00017973,2]
[401057979,1767895847549,-500.0,0.00017973,2]
[401057981,1767895847561,-500.0,0.00017973,2]
[401057983,1767895847571,-385.16009683,0.00017973,2]
[401057985,1767895847581,-500.0,0.00017973,2]
[401057987,1767895847592,-500.0,0.00017973,2]
[401057989,1767895847603,-500.0,0.00017973,2]
[401057991,1767895847613,-500.0,0.00017973,2]
[401057992,1767895847623,-500.0,0.00017973,2]
[401057995,1767895847635,-500.0,0.00017973,2]
[401057997,1767895847647,-501.18870733,0.00017973,2]
[401057999,1767895847658,-500.0,0.00017973,2]
[401058001,1767895847670,-500.0,0.00017973,2]
[401058003,1767895847681,-500.0,0.00017973,2]
[401058004,1767895847691,-160.81509317,0.00017973,2]
[401058006,1767895847702,-338.62982115,0.00017973,2]
[401058008,1767895847714,-500.0,0.00017973,2]
[401058010,1767895847724,-500.0,0.00017973,2]
[401058012,1767895847734,-150.0,0.00017973,2]
[401058014,1767895847745,-4609.0,0.00017976,2]
[401058016,1767895847759,-500.0,0.00017982,2]
[401058018,1767895847771,-385.39614839,0.0001799,2]
[401058020,1767895847782,-385.39614839,0.0001799,2]
[401058022,1767895847792,-151.0,0.00017997,2]
[401058024,1767895847802,-150.0,0.00017999,2]
[401058026,1767895847813,-300.0,0.00017999,2]
[401058028,1767895847824,-1006.1979,0.00017999,2]
[401058030,1767895847835,-300.0,0.00017999,2]
[401058032,1767895847845,-167.20409483,0.00017999,2]
[401058034,1767895847856,-300.0,0.00017999,2]
[401058036,1767895847866,-300.0,0.00017999,2]
[401058038,1767895847876,-666.0,0.00017999,2]
[401058040,1767895847887,-300.0,0.00017999,2]
[401058042,1767895847898,-300.0,0.00017999,2]
[401058044,1767895847908,-500.0,0.00017999,2]
[401058046,1767895847919,-500.0,0.00017999,2]
[401058047,1767895847929,-500.0,0.00017999,2]
[401058050,1767895847939,-500.0,0.00017999,2]
[401058052,1767895847950,-500.0,0.00017999,2]
[401058053,1767895847960,-500.0,0.00017999,2]
[401058055,1767895847971,-500.0,0.00017999,2]
[401058057,1767895847981,-500.0,0.00017999,2]
[401058059,1767895847992,-500.0,0.00017999,2]
[401058061,1767895848002,-500.0,0.00017999,2]
[401058063,1767895848013,-500.0,0.00017999,2]
[401058065,1767895848023,-500.0,0.00017999,2]
[401058067,1767895848033,-500.0,0.00017999,2]
[401058069,1767895848043,-443.42722753,0.00017999,2]
[401058071,1767895848053,-931.94,0.00017999,2]
[401058073,1767895848064,-931.94,0.00017999,2]
[401058075,1767895848074,-931.94,0.00017999,2]
[401058077,1767895848085,-931.94,0.00017999,2]
[401058079,1767895848095,-931.94,0.00017999,2]
[401058081,1767895848105,-931.94,0.00017999,2]
[401058083,1767895848116,-931.94,0.00017999,2]
[401058085,1767895848126,-931.94,0.00017999,2]
[401058086,1767895848136,-931.94,0.00017999,2]
[401058088,1767895848147,-931.94,0.00017999,2]
[401058090,1767895848159,-931.94,0.00017999,2]
[401058093,1767895848171,-931.94,0.00017999,2]
[401058094,1767895848182,-931.94,0.00017999,2]
[401058096,1767895848192,-931.94,0.00017999,2]
[401058098,1767895848203,-931.94,0.00017999,2]
[401058100,1767895848214,-932.0377512,0.00017999,2]
[401058102,1767895848225,-300.0,0.00017999,2]
[401058104,1767895848235,-500.0,0.00017999,2]
[401058106,1767895848246,-500.0,0.00017999,2]
[401058108,1767895848259,-500.0,0.00017999,2]
[401058110,1767895848271,-500.0,0.00017999,2]
[401058112,1767895848282,-577.6208976,0.00017999,2]
[401058114,1767895848294,-500.0,0.00017999,2]
[401058116,1767895848305,-500.0,0.00017999,2]
[401058118,1767895848315,-500.0,0.00017999,2]
[401058120,1767895848325,-564.92009029,0.00017999,2]
[401058122,1767895848335,-270.4200676,0.00017999,2]
[401058124,1767895848346,-300.0,0.00017999,2]
[401058126,1767895848357,-666.0,0.00017999,2]
[401058128,1767895848367,-300.0,0.00017999,2]
[401058130,1767895848377,-170.3668759,0.00017999,2]
[401058131,1767895848388,-300.0,0.00017999,2]
[401058133,1767895848398,-666.0,0.00017999,2]
[401058135,1767895848409,-500.0,0.00017999,2]
[401058137,1767895848420,-500.0,0.00017999,2]
[401058139,1767895848431,-500.0,0.00017999,2]
[401058141,1767895848442,-500.0,0.00017999,2]
[401058143,1767895848453,-500.0,0.00017999,2]
[401058145,1767895848465,-500.0,0.00017999,2]
[401058147,1767895848476,-500.0,0.00017999,2]
[401058149,1767895848486,-500.0,0.00017999,2]
[401058151,1767895848496,-500.0,0.00017999,2]
[401058153,1767895848507,-500.0,0.00017999,2]
[401058155,1767895848517,-500.0,0.00017999,2]
[401058156,1767895848528,-500.0,0.00017999,2]
[401058158,1767895848539,-500.0,0.00017999,2]
[401058160,1767895848550,-640.4513734,0.00017999,2]
[401058162,1767895848564,-11518.53087648,0.00017999,2]
[401058164,1767895848575,-300.0,0.00017999,2]
[401058166,1767895848586,-666.0,0.00017999,2]
[401058168,1767895848598,-300.0,0.00017999,2]
[401058170,1767895848610,-666.0,0.00017999,2]
[401058172,1767895848621,-500.0,0.00017999,2]
[401058174,1767895848631,-500.0,0.00017999,2]
[401058176,1767895848641,-320.87822696,0.00017999,2]
[401058178,1767895848653,-300.0,0.00017999,2]
[401058180,1767895848663,-600.85,0.00017999,2]
[401058182,1767895848674,-600.85,0.00017999,2]
[401058184,1767895848686,-600.85,0.00017999,2]
[401058186,1767895848697,-600.85,0.00017999,2]
[401058188,1767895848707,-600.85,0.00017999,2]
[401058190,1767895848717,-600.85,0.00017999,2]
[401058192,1767895848727,-600.85,0.00017999,2]
[401058194,1767895848738,-600.85,0.00017999,2]
[401058196,1767895848748,-600.85,0.00017999,2]
[401058198,1767895848759,-600.85,0.00017999,2]
[401058200,1767895848770,-600.85,0.00017999,2]
[401058202,1767895848781,-600.85,0.00017999,2]
[401058203,1767895848793,-600.85,0.00017999,2]
[401058205,1767895848803,-600.85,0.00017999,2]
[401058207,1767895848813,-600.85,0.00017999,2]
[401058209,1767895848823,-600.92085139,0.00017999,2]
[401058211,1767895848835,-5970.77362135,0.00017999,2]
[401058213,1767895848845,-1000.0,0.00018,2]
[401058215,1767895848856,-836.47750939,0.00018,2]
[401058217,1767895848866,-2562615.55317383,0.00018,2]
[401058278,1767895849523,-1361.29,0.00018,2]
[401058280,1767895849536,-8302.63099402,0.00018,2]
[401058285,1767895849575,-4619.849466,0.00018,2]
[401058287,1767895849588,-1172.5438453,0.00018,2]
[401058289,1767895849601,-1368.08453927,0.00018,2]
[401058292,1767895849618,-23380.25365777,0.00018,2]
[401058294,1767895849630,-506.37642362,0.00018,2]
[401058296,1767895849642,-347.45489711,0.00018,2]
[401058298,1767895849653,-10703.3979,0.00018,2]
[401058300,1767895849666,-11393.00688643,0.00018,2]
[401058302,1767895849678,-860.73995649,0.00018,2]
[401058307,1767895849722,-5426.82916256,0.00018,2]
[401058309,1767895849734,-276.871998,0.00018,2]
[401058311,1767895849747,-854.0836,0.00018,2]
[401058314,1767895849762,-5954.8,0.00018,2]
[401058316,1767895849775,-1954.88465393,0.00018,2]
[401058318,1767895849789,-1803.15946506,0.00018,2]
[401058320,1767895849802,-913.55,0.00018,2]
[401058322,1767895849814,-2920.510901,0.00018,2]
[401058324,1767895849827,-2751.39440627,0.00018,2]
[401058416,1767895850978,-208.63588649,0.00012196,2]
[401058418,1767895850988,-132.34586951,0.0001507,2]
[401058420,1767895851001,-18.65413049,0.0001507,2]
[401058422,1767895851013,-281.31436936,0.00017438,2]
[401058424,1767895851026,-4197.18904291,0.00017438,2]
[401058426,1767895851038,-963.0517014,0.00017438,2]
[401058428,1767895851052,-300.0,0.00017438,2]
[401058432,1767895851075,-810.44488633,0.00017438,2]
[401058434,1767895851085,-304499.24002522,0.00018,2]
[401058436,1767895851098,-22215.37913688,0.00018,2]
[401058442,1767895851155,-489.07083889,0.00018,2]
[401058448,1767895851210,-593.99201666,0.00018,2]
[401058450,1767895851222,-3451.32933129,0.00018,2]
[401058452,1767895851235,-677169.5686136,0.00018,2]
[401058465,1767895851364,-410.39994,0.00018,2]
[401058467,1767895851376,-345.0,0.00018,2]
[401058501,1767895851736,-38284.52345267,0.00018,2]
[401058503,1767895851749,-280.84999606,0.00018,2]
[401058520,1767895851922,-2210.25629834,0.00018,2]
[401058522,1767895851935,-1151.2625,0.00018,2]
[401058524,1767895851947,-999.0,0.00018,2]
[401058531,1767895852011,-945.83191163,0.00018,2]
[401058534,1767895852027,-1295.10302854,0.00018,2]
[401058536,1767895852039,-220146.36662864,0.00018,2]
[401059627,1767895894202,1803.699,0.00012036,2]
[401059628,1767895894322,167.203,0.00012036,2]
[401059795,1767896088639,174.02583464,0.0001208,2]
[401059979,1767896409938,174.02583463,0.00012079,2]
[401059980,1767896456145,300.0,0.00019,30]
[401059994,1767896740005,156.76,6.193e-05,2]
[401059995,1767896740252,156.76,6.937e-05,2]
[401059996,1767896740466,156.76,7.68e-05,2]
[401059997,1767896740762,156.76,8.424e-05,2]
[401059998,1767896740956,156.76,9.168e-05,2]
[401059999,1767896741512,156.76,9.912e-05,2]
[401060000,1767896741795,156.76,0.00010655,2]
[401060001,1767896741924,156.76,0.00011399,2]
[401060008,1767896881558,1000000.0,0.0001208,2]
[401060010,1767896895671,31604.39208387,0.00012143,10]
[401060011,1767896895702,49263.12034805,0.00012143,10]
[401060013,1767896910178,267.90494813,0.000107,2]
[401060031,1767896917282,4315.62632603,0.0001,2]
[401060089,1767896972510,1899.23071139,0.000107,2]
[401060090,1767896972548,233.19764693,0.000107,2]
[401060091,1767896972586,230.95716412,0.000107,2]
[401060097,1767897030142,1000000.0,0.00012079,2]
[401060109,1767897032013,-156.76,0.00012143,2]
[401060110,1767897032024,-1200.0,0.00012174,2]
[401060111,1767897032033,-150.0,0.00012174,2]
[401060112,1767897032043,-1200.0,0.00012175,2]
[401060113,1767897032054,-500.0,0.00012175,2]
[401060114,1767897032064,-500.0,0.00012175,2]
[401060115,1767897032075,-498.99148565,0.00012175,2]
[401060116,1767897032084,-503.28319711,0.00012175,2]
[401060117,1767897032094,-231.40810775,0.00012175,2]
[401060118,1767897032106,-500.0,0.00012175,2]
[401060119,1767897032116,-344.26471226,0.00012175,2]
[401060120,1767897032125,-500.0,0.00012175,2]
[401060121,1767897032135,-500.0,0.00012175,2]
[401060122,1767897032144,-500.61421208,0.00012175,2]
[401060123,1767897032154,-500.0,0.00012175,2]
[401060124,1767897032163,-500.0,0.00012175,2]
[401060125,1767897032172,-542.77065189,0.00012175,2]
[401060126,1767897032182,-500.0,0.00012175,2]
[401060127,1767897032192,-473.26906906,0.00012175,2]